[Event "Titled Tuesday Blitz May 16 Late 2023"]
[White "Mirzoev, Azer"]
[Black "Manu_ChessExcelsior"]
[WhiteFideId "13400304"]
[WhiteElo "2525"]
[BlackElo "2060"]
[Result "1-0"]
[Round "05"]
[TimeControl "180+2"]
[Date "2023.05.16"]
[WhiteClock "0:00:11"]
[BlackClock "0:00:04"]

1. c4 {[%clk 0:03:00]}  e6 {[%clk 0:02:56]} 2. Nc3 {[%clk 0:03:01]}  d5 {[%clk 0:02:56]} 3. e3 {[%clk 0:03:01]}  Nf6 {[%clk 0:02:55]} 4. b3 {[%clk 0:03:00]}  Be7 {[%clk 0:02:55]} 5. Bb2 {[%clk 0:03:01]}  O-O {[%clk 0:02:55]} 6. Nf3 {[%clk 0:03:01]}  b6 {[%clk 0:02:50]} 7. cxd5 {[%clk 0:02:57]}  exd5 {[%clk 0:02:50]} 8. d4 {[%clk 0:02:56]}  Nbd7 {[%clk 0:02:49]} 9. Bd3 {[%clk 0:02:50]}  Bb7 {[%clk 0:02:50]} 10. O-O {[%clk 0:02:49]}  c5 {[%clk 0:02:44]} 11. Qe2 {[%clk 0:02:48]}  Rc8 {[%clk 0:02:38]} 12. Rfd1 {[%clk 0:02:44]}  Ne4 {[%clk 0:02:07]} 13. Rac1 {[%clk 0:02:41]}  Ndf6 {[%clk 0:02:03]} 14. dxc5 {[%clk 0:02:33]}  Nxc5 {[%clk 0:01:56]} 15. Bf5 {[%clk 0:02:32]}  Rc6 {[%clk 0:01:52]} 16. Nd4 {[%clk 0:02:30]}  Re6 {[%clk 0:01:49]} 17. Nxe6 {[%clk 0:02:28]}  fxe6 {[%clk 0:01:49]} 18. Bh3 {[%clk 0:02:27]}  Bd6 {[%clk 0:01:44]} 19. g3 {[%clk 0:02:24]}  Qe7 {[%clk 0:01:44]} 20. Bg2 {[%clk 0:02:18]}  Ba6 {[%clk 0:01:36]} 21. Qc2 {[%clk 0:02:13]}  Rc8 {[%clk 0:01:33]} 22. Qb1 {[%clk 0:02:08]}  Rf8 {[%clk 0:01:25]} 23. b4 {[%clk 0:02:03]}  Ncd7 {[%clk 0:01:22]} 24. b5 {[%clk 0:01:54]}  Bb7 {[%clk 0:01:22]} 25. Ne2 {[%clk 0:01:53]}  Ng4 {[%clk 0:01:17]} 26. Rf1 {[%clk 0:01:30]}  Nde5 {[%clk 0:00:52]} 27. Nf4 {[%clk 0:01:07]}  Nc4 {[%clk 0:00:38]} 28. Rc2 {[%clk 0:00:58]}  Bc5 {[%clk 0:00:27]} 29. Nd3 {[%clk 0:00:45]}  Bd6 {[%clk 0:00:25]} 30. Qd1 {[%clk 0:00:37]}  Nxb2 {[%clk 0:00:25]} 31. Rxb2 {[%clk 0:00:31]}  Qf6 {[%clk 0:00:24]} 32. Rc2 {[%clk 0:00:29]}  Ne5 {[%clk 0:00:21]} 33. Nxe5 {[%clk 0:00:28]}  Qxe5 {[%clk 0:00:21]} 34. Qd3 {[%clk 0:00:22]}  Qh5 {[%clk 0:00:19]} 35. a4 {[%clk 0:00:21]}  Kh8 {[%clk 0:00:17]} 36. f4 {[%clk 0:00:19]}  Qf7 {[%clk 0:00:13]} 37. Kh1 {[%clk 0:00:17]}  Qe7 {[%clk 0:00:11]} 38. Re2 {[%clk 0:00:17]}  Bc5 {[%clk 0:00:11]} 39. e4 {[%clk 0:00:16]}  d4 {[%clk 0:00:12]} 40. e5 {[%clk 0:00:16]}  Rd8 {[%clk 0:00:09]} 41. Bxb7 {[%clk 0:00:15]}  Qxb7+ {[%clk 0:00:10]} 42. Qf3 {[%clk 0:00:14]}  Qxf3+ {[%clk 0:00:08]} 43. Rxf3 {[%clk 0:00:14]}  d3 {[%clk 0:00:06]} 44. Rd2 {[%clk 0:00:14]}  Bb4 {[%clk 0:00:05]} 45. Rdxd3 {[%clk 0:00:14]}  Rxd3 {[%clk 0:00:04]} 46. Rxd3 {[%clk 0:00:14]}  Kg8 {[%clk 0:00:05]} 47. Kg2 {[%clk 0:00:14]}  Kf7 {[%clk 0:00:05]} 48. Kf3 {[%clk 0:00:15]}  Ke7 {[%clk 0:00:06]} 49. Ke4 {[%clk 0:00:15]}  Bc5 {[%clk 0:00:07]} 50. g4 {[%clk 0:00:16]}  g5 {[%clk 0:00:06]} 51. f5 {[%clk 0:00:15]}  exf5+ {[%clk 0:00:06]} 52. gxf5 {[%clk 0:00:16]}  h5 {[%clk 0:00:07]} 53. Rd5 {[%clk 0:00:13]}  Bf2 {[%clk 0:00:07]} 54. e6 {[%clk 0:00:13]}  Bg1 {[%clk 0:00:07]} 55. Rd7+ {[%clk 0:00:13]}  Ke8 {[%clk 0:00:07]} 56. h3 {[%clk 0:00:13]}  Bh2 {[%clk 0:00:06]} 57. f6 {[%clk 0:00:12]}  g4 {[%clk 0:00:05]} 58. hxg4 {[%clk 0:00:12]}  hxg4 {[%clk 0:00:05]} 59. Rh7 {[%clk 0:00:11]}  g3 {[%clk 0:00:04]} 60. Rh8# {[%clk 0:00:11]} 1-0


[Site "https://www.chess.com"]

[Event "Titled Tuesday Blitz May 16 Late 2023"]
[White "Talbi, Chafik"]
[Black "HamedWafa4"]
[WhiteFideId "7903715"]
[WhiteElo "2186"]
[BlackElo "2604"]
[Result "0-1"]
[Round "05"]
[TimeControl "180+2"]
[Date "2023.05.16"]
[WhiteClock "0:00:10"]
[BlackClock "0:00:31"]

1. e4 {[%clk 0:03:00]}  e5 {[%clk 0:02:58]} 2. Nf3 {[%clk 0:02:59]}  Nc6 {[%clk 0:02:48]} 3. Bb5 {[%clk 0:02:58]}  a6 {[%clk 0:02:46]} 4. Ba4 {[%clk 0:02:57]}  Nf6 {[%clk 0:02:45]} 5. Nc3 {[%clk 0:02:52]}  b5 {[%clk 0:02:43]} 6. Bb3 {[%clk 0:02:51]}  Be7 {[%clk 0:02:44]} 7. d3 {[%clk 0:02:49]}  O-O {[%clk 0:02:42]} 8. a4 {[%clk 0:02:48]}  Na5 {[%clk 0:02:31]} 9. Ba2 {[%clk 0:02:39]}  b4 {[%clk 0:02:29]} 10. Ne2 {[%clk 0:02:35]}  d6 {[%clk 0:02:26]} 11. O-O {[%clk 0:02:33]}  b3 {[%clk 0:02:19]} 12. cxb3 {[%clk 0:02:31]}  c5 {[%clk 0:02:19]} 13. Bd2 {[%clk 0:02:27]}  Nc6 {[%clk 0:02:19]} 14. Bc3 {[%clk 0:02:23]}  Bg4 {[%clk 0:02:17]} 15. Ng3 {[%clk 0:02:21]}  Nh5 {[%clk 0:02:17]} 16. Nxh5 {[%clk 0:02:19]}  Bxh5 {[%clk 0:02:18]} 17. h3 {[%clk 0:02:15]}  Kh8 {[%clk 0:02:08]} 18. g4 {[%clk 0:02:11]}  Bg6 {[%clk 0:02:08]} 19. Bb1 {[%clk 0:02:06]}  Rb8 {[%clk 0:02:00]} 20. Bc2 {[%clk 0:02:05]}  h5 {[%clk 0:01:41]} 21. Nd2 {[%clk 0:02:03]}  Bg5 {[%clk 0:01:35]} 22. Nc4 {[%clk 0:02:00]}  Bf4 {[%clk 0:01:20]} 23. gxh5 {[%clk 0:01:57]}  Bh7 {[%clk 0:01:10]} 24. Qg4 {[%clk 0:01:49]}  f5 {[%clk 0:00:54]} 25. Qg2 {[%clk 0:01:44]}  Nd4 {[%clk 0:00:45]} 26. Bxd4 {[%clk 0:01:43]}  cxd4 {[%clk 0:00:44]} 27. Kh1 {[%clk 0:01:39]}  fxe4 {[%clk 0:00:44]} 28. dxe4 {[%clk 0:01:38]}  d5 {[%clk 0:00:45]} 29. Na3 {[%clk 0:01:26]}  Rb7 {[%clk 0:00:30]} 30. Rad1 {[%clk 0:01:02]}  dxe4 {[%clk 0:00:29]} 31. Bxe4 {[%clk 0:00:57]}  Bxe4 {[%clk 0:00:28]} 32. Qxe4 {[%clk 0:00:58]}  Qh4 {[%clk 0:00:26]} 33. Rd3 {[%clk 0:00:54]}  Rbf7 {[%clk 0:00:24]} 34. Nc4 {[%clk 0:00:51]}  Rf5 {[%clk 0:00:24]} 35. Rg1 {[%clk 0:00:34]}  Rxh5 {[%clk 0:00:23]} 36. Qg6 {[%clk 0:00:31]}  Rh7 {[%clk 0:00:20]} 37. Rg2 {[%clk 0:00:26]}  Qf6 {[%clk 0:00:18]} 38. Qxf6 {[%clk 0:00:24]}  gxf6 {[%clk 0:00:19]} 39. b4 {[%clk 0:00:21]}  f5 {[%clk 0:00:19]} 40. b5 {[%clk 0:00:20]}  axb5 {[%clk 0:00:18]} 41. axb5 {[%clk 0:00:20]}  Rd7 {[%clk 0:00:19]} 42. f3 {[%clk 0:00:19]}  e4 {[%clk 0:00:18]} 43. fxe4 {[%clk 0:00:18]}  fxe4 {[%clk 0:00:19]} 44. Rd1 {[%clk 0:00:18]}  d3 {[%clk 0:00:19]} 45. b6 {[%clk 0:00:16]}  e3 {[%clk 0:00:19]} 46. Rgg1 {[%clk 0:00:13]}  e2 {[%clk 0:00:19]} 47. Ra1 {[%clk 0:00:10]}  d2 {[%clk 0:00:19]} 48. Nxd2 {[%clk 0:00:07]}  Bxd2 {[%clk 0:00:20]} 49. Ra7 {[%clk 0:00:04]}  Rxa7 {[%clk 0:00:19]} 50. bxa7 {[%clk 0:00:04]}  e1=Q {[%clk 0:00:20]} 51. Rxe1 {[%clk 0:00:04]}  Bxe1 {[%clk 0:00:21]} 52. b3 {[%clk 0:00:04]}  Bf2 {[%clk 0:00:21]} 53. a8=Q {[%clk 0:00:03]}  Rxa8 {[%clk 0:00:22]} 54. Kg2 {[%clk 0:00:03]}  Bc5 {[%clk 0:00:22]} 55. Kf3 {[%clk 0:00:02]}  Rb8 {[%clk 0:00:23]} 56. Ke4 {[%clk 0:00:02]}  Rxb3 {[%clk 0:00:24]} 57. Kd5 {[%clk 0:00:03]}  Rxh3 {[%clk 0:00:24]} 58. Kxc5 {[%clk 0:00:04]}  Kg7 {[%clk 0:00:25]} 59. Kd4 {[%clk 0:00:04]}  Kf6 {[%clk 0:00:26]} 60. Ke4 {[%clk 0:00:04]}  Rh4+ {[%clk 0:00:26]} 61. Kf3 {[%clk 0:00:05]}  Kf5 {[%clk 0:00:27]} 62. Kg3 {[%clk 0:00:06]}  Ra4 {[%clk 0:00:27]} 63. Kf3 {[%clk 0:00:06]}  Ra3+ {[%clk 0:00:28]} 64. Ke2 {[%clk 0:00:07]}  Ke4 {[%clk 0:00:28]} 65. Kd2 {[%clk 0:00:08]}  Rb3 {[%clk 0:00:29]} 66. Kc2 {[%clk 0:00:08]}  Rb5 {[%clk 0:00:28]} 67. Kc3 {[%clk 0:00:08]}  Rc5+ {[%clk 0:00:29]} 68. Kb4 {[%clk 0:00:08]}  Kd4 {[%clk 0:00:29]} 69. Kb3 {[%clk 0:00:09]}  Rb5+ {[%clk 0:00:30]} 70. Kc2 {[%clk 0:00:10]}  Rb4 {[%clk 0:00:30]} 71. Kc1 {[%clk 0:00:10]}  Kd3 {[%clk 0:00:30]} 72. Kd1 {[%clk 0:00:10]}  Rb1# {[%clk 0:00:31]} 0-1


[Site "https://www.chess.com"]

[Event "Titled Tuesday Blitz May 16 Late 2023"]
[White "OPQRC"]
[Black "Xavier_mompel"]
[WhiteElo "2548"]
[BlackElo "2213"]
[Result "1-0"]
[Round "05"]
[TimeControl "180+2"]
[Date "2023.05.16"]
[WhiteClock "0:00:13"]
[BlackClock "0:00:00"]

1. e4 {[%clk 0:03:00]}  c5 {[%clk 0:02:59]} 2. Nf3 {[%clk 0:02:59]}  e6 {[%clk 0:03:00]} 3. b3 {[%clk 0:02:59]}  Nf6 {[%clk 0:02:57]} 4. e5 {[%clk 0:02:55]}  Nd5 {[%clk 0:02:57]} 5. Bb2 {[%clk 0:02:55]}  Nc6 {[%clk 0:02:56]} 6. Nc3 {[%clk 0:02:53]}  Nxc3 {[%clk 0:02:55]} 7. dxc3 {[%clk 0:02:53]}  d6 {[%clk 0:02:51]} 8. exd6 {[%clk 0:02:53]}  Bxd6 {[%clk 0:02:49]} 9. Bd3 {[%clk 0:02:50]}  O-O {[%clk 0:02:45]} 10. Qe2 {[%clk 0:02:50]}  Qe7 {[%clk 0:02:44]} 11. O-O-O {[%clk 0:02:49]}  a6 {[%clk 0:02:30]} 12. h4 {[%clk 0:02:49]}  h6 {[%clk 0:02:28]} 13. Kb1 {[%clk 0:02:49]}  b5 {[%clk 0:02:26]} 14. Qe4 {[%clk 0:02:35]}  f5 {[%clk 0:02:08]} 15. Qxc6 {[%clk 0:02:35]}  Bb7 {[%clk 0:02:08]} 16. Qb6 {[%clk 0:02:30]}  Bxf3 {[%clk 0:01:39]} 17. gxf3 {[%clk 0:02:23]}  Rfb8 {[%clk 0:01:21]} 18. Qa5 {[%clk 0:02:19]}  c4 {[%clk 0:01:09]} 19. bxc4 {[%clk 0:01:54]}  b4 {[%clk 0:00:25]} 20. Ka1 {[%clk 0:01:19]}  Bc7 {[%clk 0:00:24]} 21. Qa4 {[%clk 0:01:11]}  Be5 {[%clk 0:00:23]} 22. Rhe1 {[%clk 0:01:04]}  bxc3 {[%clk 0:00:18]} 23. Ba3 {[%clk 0:00:31]}  Qf6 {[%clk 0:00:13]} 24. c5 {[%clk 0:00:29]}  Rc8 {[%clk 0:00:12]} 25. Qc4 {[%clk 0:00:23]}  Kf7 {[%clk 0:00:09]} 26. f4 {[%clk 0:00:22]}  Bc7 {[%clk 0:00:06]} 27. Re2 {[%clk 0:00:17]}  Re8 {[%clk 0:00:06]} 28. Qa4 {[%clk 0:00:15]}  Re7 {[%clk 0:00:05]} 29. c6 {[%clk 0:00:15]}  Ree8 {[%clk 0:00:04]} 30. Rde1 {[%clk 0:00:14]}  Rad8 {[%clk 0:00:03]} 31. Bc4 {[%clk 0:00:14]}  Rd4 {[%clk 0:00:02]} 32. Qb3 {[%clk 0:00:13]}  Rxc4 {[%clk 0:00:00]} 33. Qxc4 {[%clk 0:00:13]} 1-0


[Site "https://www.chess.com"]

[Event "Titled Tuesday Blitz May 16 Late 2023"]
[White "Winkels, Marcel"]
[Black "nicolasulaneobelassi"]
[WhiteFideId "1003887"]
[WhiteElo "1900"]
[BlackElo "2408"]
[Result "0-1"]
[Round "05"]
[TimeControl "180+2"]
[Date "2023.05.16"]
[WhiteClock "0:00:09"]
[BlackClock "0:00:38"]

1. d4 {[%clk 0:03:00]}  Nf6 {[%clk 0:02:58]} 2. Nc3 {[%clk 0:03:01]}  d5 {[%clk 0:02:54]} 3. Bf4 {[%clk 0:03:02]}  c5 {[%clk 0:02:54]} 4. e4 {[%clk 0:03:01]}  Nxe4 {[%clk 0:02:36]} 5. Nxe4 {[%clk 0:03:00]}  dxe4 {[%clk 0:02:35]} 6. dxc5 {[%clk 0:03:01]}  Qa5+ {[%clk 0:02:32]} 7. c3 {[%clk 0:03:00]}  Qxc5 {[%clk 0:02:31]} 8. Qa4+ {[%clk 0:03:01]}  Nc6 {[%clk 0:02:29]} 9. Qxe4 {[%clk 0:03:00]}  e5 {[%clk 0:02:23]} 10. Be3 {[%clk 0:02:39]}  Qa5 {[%clk 0:02:22]} 11. Nf3 {[%clk 0:02:37]}  Be7 {[%clk 0:02:18]} 12. Bd3 {[%clk 0:02:33]}  f5 {[%clk 0:02:06]} 13. Qc4 {[%clk 0:02:25]}  e4 {[%clk 0:02:01]} 14. Nd4 {[%clk 0:02:17]}  Nxd4 {[%clk 0:01:43]} 15. Bxd4 {[%clk 0:02:14]}  exd3 {[%clk 0:01:39]} 16. Bxg7 {[%clk 0:02:10]}  Rf8 {[%clk 0:01:17]} 17. Bxf8 {[%clk 0:02:08]}  Qe5+ {[%clk 0:01:16]} 18. Kf1 {[%clk 0:01:59]}  Qe2+ {[%clk 0:01:14]} 19. Kg1 {[%clk 0:01:59]}  Kxf8 {[%clk 0:01:11]} 20. h3 {[%clk 0:01:48]}  Be6 {[%clk 0:01:10]} 21. Qd4 {[%clk 0:01:44]}  Kf7 {[%clk 0:01:06]} 22. Kh2 {[%clk 0:01:40]}  Rd8 {[%clk 0:01:05]} 23. Qxa7 {[%clk 0:01:30]}  Bd6+ {[%clk 0:01:05]} 24. g3 {[%clk 0:01:28]}  Bd5 {[%clk 0:00:55]} 25. Rhg1 {[%clk 0:01:19]}  d2 {[%clk 0:00:47]} 26. Qb6 {[%clk 0:01:04]}  Rd7 {[%clk 0:00:43]} 27. Rad1 {[%clk 0:00:59]}  Bc6 {[%clk 0:00:41]} 28. Qd4 {[%clk 0:00:32]}  Bxg3+ {[%clk 0:00:38]} 29. Kxg3 {[%clk 0:00:28]}  Rxd4 {[%clk 0:00:38]} 30. cxd4 {[%clk 0:00:27]}  Qf3+ {[%clk 0:00:38]} 31. Kh2 {[%clk 0:00:09]}  Qxf2+ {[%clk 0:00:38]} 0-1


[Site "https://www.chess.com"]

[Event "Titled Tuesday Blitz May 16 Late 2023"]
[White "Manon-og, Ramon Jr."]
[Black "Fuentes Godoy, Lilia Ivonne"]
[WhiteFideId "5200776"]
[BlackFideId "5104130"]
[WhiteElo "2354"]
[BlackElo "2096"]
[Result "0-1"]
[Round "05"]
[TimeControl "180+2"]
[Date "2023.05.16"]
[WhiteClock "0:00:00"]
[BlackClock "0:00:07"]

1. e4 {[%clk 0:03:00]}  c5 {[%clk 0:02:59]} 2. Nf3 {[%clk 0:02:59]}  Nc6 {[%clk 0:02:59]} 3. d4 {[%clk 0:02:57]}  cxd4 {[%clk 0:02:59]} 4. Nxd4 {[%clk 0:02:56]}  e5 {[%clk 0:02:59]} 5. Nb3 {[%clk 0:02:52]}  Nf6 {[%clk 0:02:50]} 6. Nc3 {[%clk 0:02:48]}  Be7 {[%clk 0:02:51]} 7. Bd3 {[%clk 0:02:40]}  O-O {[%clk 0:02:50]} 8. Bd2 {[%clk 0:02:32]}  d6 {[%clk 0:02:51]} 9. O-O {[%clk 0:02:25]}  a6 {[%clk 0:02:49]} 10. Qe2 {[%clk 0:02:17]}  b5 {[%clk 0:02:32]} 11. Rad1 {[%clk 0:02:07]}  Qb6 {[%clk 0:02:25]} 12. Rfe1 {[%clk 0:02:03]}  Bg4 {[%clk 0:02:23]} 13. Qf1 {[%clk 0:01:57]}  Bxd1 {[%clk 0:02:23]} 14. Rxd1 {[%clk 0:01:56]}  Rac8 {[%clk 0:02:13]} 15. Nd5 {[%clk 0:01:37]}  Qb7 {[%clk 0:01:47]} 16. Nxe7+ {[%clk 0:01:26]}  Qxe7 {[%clk 0:01:48]} 17. Bg5 {[%clk 0:01:21]}  Nb4 {[%clk 0:01:41]} 18. a3 {[%clk 0:01:01]}  Nxc2 {[%clk 0:01:34]} 19. Rc1 {[%clk 0:00:53]}  Nd4 {[%clk 0:01:32]} 20. Nxd4 {[%clk 0:00:41]}  exd4 {[%clk 0:01:33]} 21. Rd1 {[%clk 0:00:35]}  h6 {[%clk 0:01:20]} 22. Bh4 {[%clk 0:00:27]}  g5 {[%clk 0:01:17]} 23. Bg3 {[%clk 0:00:26]}  Rfe8 {[%clk 0:00:28]} 24. Qe2 {[%clk 0:00:21]}  d5 {[%clk 0:00:10]} 25. Re1 {[%clk 0:00:17]}  dxe4 {[%clk 0:00:10]} 26. Bc2 {[%clk 0:00:16]}  d3 {[%clk 0:00:10]} 27. Qd2 {[%clk 0:00:15]}  Rxc2 {[%clk 0:00:09]} 28. Qb4 {[%clk 0:00:12]}  Qxb4 {[%clk 0:00:07]} 29. axb4 {[%clk 0:00:10]}  Rec8 {[%clk 0:00:08]} 30. Be5 {[%clk 0:00:08]}  Ng4 {[%clk 0:00:07]} 31. Bd4 {[%clk 0:00:08]}  Rc1 {[%clk 0:00:07]} 32. g3 {[%clk 0:00:04]}  Rxe1+ {[%clk 0:00:07]} 33. Kg2 {[%clk 0:00:05]}  Rcc1 {[%clk 0:00:07]} 34. Kh3 {[%clk 0:00:00]}  f5 {[%clk 0:00:07]} 0-1


[Site "https://www.chess.com"]

[Event "Titled Tuesday Blitz May 16 Late 2023"]
[White "Slavin, Alexey"]
[Black "Tarnowska, Aleksandra"]
[WhiteFideId "24104388"]
[BlackFideId "1180967"]
[WhiteElo "2264"]
[BlackElo "1776"]
[Result "1-0"]
[Round "05"]
[TimeControl "180+2"]
[Date "2023.05.16"]
[WhiteClock "0:00:21"]
[BlackClock "0:00:00"]

1. e4 {[%clk 0:02:58]}  c5 {[%clk 0:03:00]} 2. g3 {[%clk 0:02:58]}  e6 {[%clk 0:02:57]} 3. Bg2 {[%clk 0:02:57]}  Nc6 {[%clk 0:02:55]} 4. Ne2 {[%clk 0:02:57]}  Nf6 {[%clk 0:02:49]} 5. O-O {[%clk 0:02:56]}  d5 {[%clk 0:02:48]} 6. exd5 {[%clk 0:02:56]}  exd5 {[%clk 0:02:36]} 7. d4 {[%clk 0:02:55]}  cxd4 {[%clk 0:02:25]} 8. Nxd4 {[%clk 0:02:55]}  Be7 {[%clk 0:02:24]} 9. Nc3 {[%clk 0:02:53]}  O-O {[%clk 0:02:23]} 10. Bf4 {[%clk 0:02:49]}  Bg4 {[%clk 0:02:05]} 11. Qd3 {[%clk 0:02:36]}  Nb4 {[%clk 0:01:54]} 12. Qd2 {[%clk 0:02:36]}  Rc8 {[%clk 0:01:30]} 13. h3 {[%clk 0:02:27]}  Bh5 {[%clk 0:01:25]} 14. Nf5 {[%clk 0:02:22]}  Bg6 {[%clk 0:01:17]} 15. Nxe7+ {[%clk 0:02:21]}  Qxe7 {[%clk 0:01:18]} 16. a3 {[%clk 0:02:06]}  Nxc2 {[%clk 0:00:59]} 17. Rac1 {[%clk 0:02:05]}  d4 {[%clk 0:00:59]} 18. Nb5 {[%clk 0:01:40]}  Qc5 {[%clk 0:00:27]} 19. a4 {[%clk 0:01:16]}  Rfd8 {[%clk 0:00:15]} 20. Bxb7 {[%clk 0:01:13]}  d3 {[%clk 0:00:11]} 21. Bxc8 {[%clk 0:01:09]}  Qxc8 {[%clk 0:00:12]} 22. Kh2 {[%clk 0:01:04]}  Ne4 {[%clk 0:00:11]} 23. Qa5 {[%clk 0:00:57]}  Nc5 {[%clk 0:00:09]} 24. Nxa7 {[%clk 0:00:54]}  Qd7 {[%clk 0:00:09]} 25. Qxc5 {[%clk 0:00:51]}  d2 {[%clk 0:00:03]} 26. Bxd2 {[%clk 0:00:47]}  Qxd2 {[%clk 0:00:02]} 27. Nc6 {[%clk 0:00:43]}  Rf8 {[%clk 0:00:01]} 28. Ne7+ {[%clk 0:00:41]}  Kh8 {[%clk 0:00:01]} 29. Nxg6+ {[%clk 0:00:41]}  hxg6 {[%clk 0:00:01]} 30. Qxc2 {[%clk 0:00:39]}  Qd4 {[%clk 0:00:01]} 31. a5 {[%clk 0:00:34]}  Qa7 {[%clk 0:00:02]} 32. b4 {[%clk 0:00:34]}  Rb8 {[%clk 0:00:02]} 33. Qc5 {[%clk 0:00:34]}  Qb7 {[%clk 0:00:02]} 34. Rb1 {[%clk 0:00:31]}  Kh7 {[%clk 0:00:02]} 35. b5 {[%clk 0:00:31]}  Qf3 {[%clk 0:00:03]} 36. b6 {[%clk 0:00:28]}  f6 {[%clk 0:00:03]} 37. a6 {[%clk 0:00:27]}  g5 {[%clk 0:00:03]} 38. a7 {[%clk 0:00:27]}  Rh8 {[%clk 0:00:02]} 39. b7 {[%clk 0:00:26]}  Kg6 {[%clk 0:00:02]} 40. Qc2+ {[%clk 0:00:25]}  Kf7 {[%clk 0:00:02]} 41. b8=Q {[%clk 0:00:22]}  g4 {[%clk 0:00:00]} 42. Qxh8 {[%clk 0:00:21]} 1-0


[Site "https://www.chess.com"]

[Event "Titled Tuesday Blitz May 16 Late 2023"]
[White "Sailer, Mike"]
[Black "Weber, Samuel"]
[WhiteFideId "2012901"]
[BlackFideId "12924008"]
[WhiteElo "2109"]
[BlackElo "2162"]
[Result "0-1"]
[Round "05"]
[TimeControl "180+2"]
[Date "2023.05.16"]
[WhiteClock "0:00:04"]
[BlackClock "0:02:10"]

1. d4 {[%clk 0:03:00]}  d5 {[%clk 0:02:58]} 2. Bg5 {[%clk 0:02:58]}  f6 {[%clk 0:02:50]} 3. Bd2 {[%clk 0:02:57]}  Be6 {[%clk 0:02:46]} 4. Nc3 {[%clk 0:02:53]}  Bf7 {[%clk 0:02:46]} 5. e4 {[%clk 0:02:53]}  c6 {[%clk 0:02:47]} 6. Bd3 {[%clk 0:02:44]}  dxe4 {[%clk 0:02:46]} 7. Nxe4 {[%clk 0:02:43]}  Qxd4 {[%clk 0:02:46]} 8. Nf3 {[%clk 0:02:33]}  Qd8 {[%clk 0:02:43]} 9. Qe2 {[%clk 0:02:33]}  e5 {[%clk 0:02:43]} 10. O-O-O {[%clk 0:02:31]}  Nd7 {[%clk 0:02:43]} 11. Bc4 {[%clk 0:02:17]}  Bd5 {[%clk 0:02:33]} 12. Nc3 {[%clk 0:02:04]}  Nb6 {[%clk 0:02:29]} 13. Nxd5 {[%clk 0:01:55]}  cxd5 {[%clk 0:02:30]} 14. Bb5+ {[%clk 0:01:51]}  Kf7 {[%clk 0:02:30]} 15. g4 {[%clk 0:01:36]}  Bd6 {[%clk 0:02:25]} 16. Nh4 {[%clk 0:00:46]}  Ne7 {[%clk 0:02:23]} 17. f3 {[%clk 0:00:33]}  a6 {[%clk 0:02:20]} 18. Bd3 {[%clk 0:00:32]}  Rc8 {[%clk 0:02:21]} 19. Kb1 {[%clk 0:00:31]}  Qc7 {[%clk 0:02:20]} 20. Ba5 {[%clk 0:00:26]}  Qc5 {[%clk 0:02:19]} 21. Bxb6 {[%clk 0:00:26]}  Qxb6 {[%clk 0:02:19]} 22. Bf5 {[%clk 0:00:24]}  Ba3 {[%clk 0:02:16]} 23. b3 {[%clk 0:00:17]}  Rc3 {[%clk 0:02:11]} 24. f4 {[%clk 0:00:09]}  e4 {[%clk 0:02:10]} 25. Qd2 {[%clk 0:00:05]}  Rhc8 {[%clk 0:02:09]} 26. Qd4 {[%clk 0:00:04]}  Qxd4 {[%clk 0:02:09]} 27. Rxd4 {[%clk 0:00:04]}  R8c5 {[%clk 0:02:09]} 28. Rhd1 {[%clk 0:00:04]}  g6 {[%clk 0:02:08]} 29. Bd7 {[%clk 0:00:04]}  Rxc2 {[%clk 0:02:09]} 30. R4d2 {[%clk 0:00:04]}  Rc1+ {[%clk 0:02:09]} 31. Rxc1 {[%clk 0:00:04]}  Rxc1# {[%clk 0:02:10]} 0-1


[Site "https://www.chess.com"]

[Event "Titled Tuesday Blitz May 16 Late 2023"]
[White "Goswami, Vedant"]
[Black "KSho99"]
[WhiteFideId "5003725"]
[WhiteElo "2011"]
[BlackElo "2145"]
[Result "1-0"]
[Round "05"]
[TimeControl "180+2"]
[Date "2023.05.16"]
[WhiteClock "0:00:55"]
[BlackClock "0:00:17"]

1. d4 {[%clk 0:03:00]}  d5 {[%clk 0:02:59]} 2. Bf4 {[%clk 0:02:58]}  Nf6 {[%clk 0:02:55]} 3. e3 {[%clk 0:02:57]}  c5 {[%clk 0:02:56]} 4. c3 {[%clk 0:02:56]}  cxd4 {[%clk 0:02:56]} 5. exd4 {[%clk 0:02:55]}  Nc6 {[%clk 0:02:56]} 6. Nf3 {[%clk 0:02:54]}  Bg4 {[%clk 0:02:55]} 7. Nbd2 {[%clk 0:02:54]}  e6 {[%clk 0:02:55]} 8. Bb5 {[%clk 0:02:50]}  Bd6 {[%clk 0:02:52]} 9. Bxd6 {[%clk 0:02:46]}  Qxd6 {[%clk 0:02:52]} 10. O-O {[%clk 0:02:46]}  O-O {[%clk 0:02:52]} 11. Bxc6 {[%clk 0:02:44]}  Qxc6 {[%clk 0:02:42]} 12. Qb3 {[%clk 0:02:38]}  Bh5 {[%clk 0:02:37]} 13. Ne5 {[%clk 0:02:37]}  Qb6 {[%clk 0:02:34]} 14. Qxb6 {[%clk 0:02:33]}  axb6 {[%clk 0:02:34]} 15. a3 {[%clk 0:02:34]}  Rfc8 {[%clk 0:02:29]} 16. Rfe1 {[%clk 0:02:33]}  b5 {[%clk 0:02:28]} 17. Rac1 {[%clk 0:02:28]}  Rc7 {[%clk 0:02:20]} 18. f3 {[%clk 0:02:27]}  Nd7 {[%clk 0:02:19]} 19. h4 {[%clk 0:02:19]}  Nxe5 {[%clk 0:02:00]} 20. Rxe5 {[%clk 0:02:16]}  Bg6 {[%clk 0:01:58]} 21. h5 {[%clk 0:02:16]}  Bd3 {[%clk 0:01:58]} 22. Re3 {[%clk 0:02:14]}  Bc4 {[%clk 0:01:52]} 23. b3 {[%clk 0:02:12]}  Rxa3 {[%clk 0:01:51]} 24. bxc4 {[%clk 0:02:13]}  bxc4 {[%clk 0:01:50]} 25. Rb1 {[%clk 0:02:12]}  h6 {[%clk 0:01:48]} 26. Kf2 {[%clk 0:01:57]}  Kf8 {[%clk 0:01:48]} 27. g4 {[%clk 0:01:55]}  Ke7 {[%clk 0:01:49]} 28. f4 {[%clk 0:01:55]}  Kf6 {[%clk 0:01:49]} 29. Nf3 {[%clk 0:01:49]}  Ra2+ {[%clk 0:01:47]} 30. Re2 {[%clk 0:01:48]}  Ra3 {[%clk 0:01:48]} 31. Rc2 {[%clk 0:01:44]}  Ke7 {[%clk 0:01:43]} 32. Ke3 {[%clk 0:01:43]}  f6 {[%clk 0:01:42]} 33. Kd2 {[%clk 0:01:43]}  Kd6 {[%clk 0:01:42]} 34. Rcb2 {[%clk 0:01:43]}  Ra7 {[%clk 0:01:39]} 35. Rb6+ {[%clk 0:01:41]}  Kd7 {[%clk 0:01:36]} 36. R1b2 {[%clk 0:01:41]}  Ke7 {[%clk 0:01:33]} 37. Nh4 {[%clk 0:01:39]}  Kf7 {[%clk 0:01:26]} 38. Ng6 {[%clk 0:01:35]}  Rd7 {[%clk 0:01:24]} 39. Nh4 {[%clk 0:01:29]}  Rc7 {[%clk 0:01:24]} 40. Nf3 {[%clk 0:01:28]}  Rd7 {[%clk 0:01:24]} 41. Ne1 {[%clk 0:01:26]}  Rc7 {[%clk 0:01:24]} 42. Nc2 {[%clk 0:01:25]}  Rd7 {[%clk 0:01:25]} 43. Ne3 {[%clk 0:01:25]}  Rc7 {[%clk 0:01:14]} 44. f5 {[%clk 0:01:25]}  e5 {[%clk 0:01:08]} 45. Nxd5 {[%clk 0:01:14]}  Rd7 {[%clk 0:01:08]} 46. Ne3 {[%clk 0:01:07]}  exd4 {[%clk 0:01:08]} 47. Nxc4 {[%clk 0:01:07]}  dxc3+ {[%clk 0:00:46]} 48. Kxc3 {[%clk 0:01:06]}  Rc7 {[%clk 0:00:46]} 49. Rxb7 {[%clk 0:01:04]}  Raxb7 {[%clk 0:00:28]} 50. Rxb7 {[%clk 0:01:03]}  Rxb7 {[%clk 0:00:28]} 51. Nd6+ {[%clk 0:01:02]}  Ke7 {[%clk 0:00:22]} 52. Nxb7 {[%clk 0:01:02]}  Kd7 {[%clk 0:00:22]} 53. Kd4 {[%clk 0:01:00]}  Ke7 {[%clk 0:00:21]} 54. Kd5 {[%clk 0:01:00]}  Kf7 {[%clk 0:00:21]} 55. Nd6+ {[%clk 0:00:57]}  Kf8 {[%clk 0:00:21]} 56. Ke6 {[%clk 0:00:56]}  Kg8 {[%clk 0:00:17]} 57. Ne4 {[%clk 0:00:55]} 1-0


[Site "https://www.chess.com"]